bitfinex/quotes_SOLUSD_20250321
["timestamp","ask_amount","ask_price","bid_price","bid_amount"]
[1742552849216,23.23464265,126.73,126.66,451.32754265]
[1742552849510,23.23464265,126.76,126.71,23.23464265]
[1742552849894,23.23464265,126.75,126.7,30.47464265]
[1742552850513,28.95993266,126.75,126.71,7.892]
[1742552851111,5.72529001,126.75,126.71,50.85664265]
[1742552851500,23.23464265,126.76,126.71,50.85664265]
[1742552851700,23.23464265,126.75,126.71,7.892]
[1742552852529,23.23464265,126.74,126.7,15.1324]
[1742552852710,23.23464265,126.74,126.7,7.8924]
[1742552853105,23.23464265,126.75,126.7,31.12704265]
[1742552853311,23.23464265,126.75,126.72,312.0]
[1742552853919,23.23464265,126.73,126.7,81.2]
[1742552854091,23.23464265,126.71,126.68,88.42]
[1742552854413,23.23464265,126.71,126.68,81.2]
[1742552854618,23.23464265,126.71,126.68,89.0935]
[1742552855402,23.23464265,126.7,126.68,81.2]
[1742552855603,23.23464265,126.7,126.67,7.24]
[1742552855796,23.23464265,126.7,126.67,15.1343]
[1742552855997,23.23464265,126.71,126.67,15.1343]
[1742552856998,23.23464265,126.71,126.68,312.0]
[1742552857417,23.23464265,126.73,126.68,312.0]
[1742552857722,23.23464265,126.72,126.68,81.2]
[1742552858722,23.23464265,126.71,126.68,81.2]
[1742552859226,23.23464265,126.7,126.68,81.2]
[1742552859405,23.23464265,126.7,126.67,96.3341]
[1742552860619,23.23464265,126.7,126.69,312.0]
[1742552862400,23.23464265,126.7,126.69,319.8932]
[1742552863200,23.23464265,126.71,126.69,319.8932]
[1742552863631,23.23464265,126.72,126.69,7.8932]
[1742552865009,23.23464265,126.72,126.68,27.6276]
[1742552866729,23.23464265,126.72,126.71,312.0]
[1742552867550,23.23464265,126.72,126.71,319.8915]
[1742552868624,23.23464265,126.72,126.71,312.0]
[1742552871230,23.23464265,126.72,126.7,7.8923]
[1742552871833,23.23464265,126.72,126.69,7.8932]
[1742552872019,23.23464265,126.7,126.68,89.0936]
[1742552872218,23.23464265,126.7,126.68,81.2]
[1742552872931,23.23464265,126.7,126.68,89.0937]
[1742552873430,23.23464265,126.7,126.68,81.2]
[1742552873631,23.23464265,126.7,126.68,89.0937]
[1742552874232,23.23464265,126.71,126.69,312.0]
[1742552876112,23.23464265,126.71,126.69,319.8928]
[1742552877217,23.23464265,126.71,126.69,7.8928]
[1742552878623,23.23464265,126.71,126.69,7.9228]
[1742552878809,23.23464265,126.72,126.69,7.9228]
[1742552882929,23.23464265,126.71,126.69,7.9228]
[1742552883130,14.86762574,126.7,126.69,0.03]
[1742552884429,20.61369854,126.7,126.69,0.03]
[1742552885119,28.98322511,126.7,126.69,0.03]
[1742552887048,39.21829514,126.62,126.6,0.03]
[1742552887259,50.43715231,126.62,126.57,12.1698552]
[1742552887532,23.23715231,126.58,126.57,12.1698552]
[1742552887731,30.43715231,126.58,126.57,12.1698552]
[1742552888928,30.43715231,126.58,126.56,0.03]
[1742552889129,24.8116843,126.57,126.56,0.03]
[1742552889524,56.23385975,126.57,126.56,0.03]
[1742552889744,32.99670744,126.57,126.56,0.03]
[1742552890072,75.16783175,126.57,126.56,0.03]
[1742552890221,43.23715231,126.54,126.53,0.03]
[1742552890539,50.41715231,126.54,126.53,0.03]
[1742552890743,50.70147545,126.54,126.53,0.03]
[1742552891247,77.53804745,126.54,126.53,0.03]
[1742552891919,50.70147545,126.54,126.53,0.03]
[1742552892220,58.60407545,126.54,126.53,0.03]
[1742552892543,43.23715231,126.54,126.53,0.03]
[1742552892922,43.52147545,126.54,126.53,0.03]
[1742552893723,51.42407545,126.54,126.53,0.03]
[1742552894348,43.52147545,126.54,126.53,0.03]
[1742552897141,51.42407545,126.54,126.53,0.03]
[1742552897534,43.52147545,126.54,126.53,0.03]
[1742552898540,58.60407545,126.54,126.53,0.03]
[1742552899353,50.70147545,126.54,126.53,0.03]
[1742552899852,58.60407545,126.54,126.53,0.03]
[1742552900551,50.70147545,126.54,126.53,0.03]
[1742552903060,50.41715231,126.54,126.53,0.03]
[1742552904232,30.41715231,126.54,126.53,0.03]
[1742552904425,23.23715231,126.54,126.53,0.03]
[1742552909059,8.75753199,126.56,126.53,0.03]
[1742552909354,23.23715231,126.54,126.53,0.03]
[1742552911248,24.8116843,126.54,126.53,0.03]
[1742552911641,32.7142843,126.54,126.53,0.03]
[1742552912036,32.99860744,126.54,126.53,0.03]
[1742552914152,23.23715231,126.55,126.53,0.03]
[1742552916054,23.23715231,126.54,126.53,0.03]
[1742552916562,24.8116843,126.54,126.53,0.03]
[1742552919558,32.99860744,126.54,126.53,0.03]
[1742552923559,57.59317943,126.54,126.53,0.03]
[1742552925762,57.59317943,126.54,126.48,0.03]
[1742552925960,23.23715231,126.5,126.48,0.03]
[1742552926153,24.8116843,126.5,126.48,0.03]
[1742552926464,23.23715231,126.49,126.48,0.03]
[1742552927149,31.14285231,126.49,126.48,0.03]
[1742552927472,31.14285231,126.49,126.4,0.03]
[1742552927473,0.28432314,126.48,126.4,0.03]
[1742552927643,23.23715231,126.45,126.4,0.03]
[1742552927957,23.23715231,126.45,126.4,31.17815231]
[1742552928151,23.23715231,126.45,126.4,7.941]
[1742552928661,23.23715231,126.45,126.39,31.14885231]
[1742552928864,23.23715231,126.46,126.41,1.6562]
[1742552929069,23.23715231,126.46,126.41,9.5666]
[1742552929544,23.23715231,126.46,126.41,32.80375231]
[1742552930446,23.23715231,126.47,126.42,29.74525231]
[1742552930656,30.33715231,126.48,126.43,23.23715231]
[1742552930964,7.1,126.48,126.44,7.9088]
[1742552931259,23.23715231,126.49,126.44,50.91815231]
[1742552931462,5.73011416,126.47,126.45,23.23715231]
[1742552931646,5.73011416,126.47,126.46,23.23715231]
[1742552932451,23.23715231,126.52,126.46,24.75775231]
[1742552933050,23.23715231,126.52,126.47,27.6745]
[1742552933656,23.23715231,126.51,126.47,27.6745]
[1742552936176,23.23715231,126.52,126.47,27.6745]
[1742552937469,0.063,126.51,126.47,27.6745]
[1742552938085,0.063,126.51,126.47,50.91165231]
[1742552938478,0.063,126.51,126.47,63.17127689]
[1742552938677,0.063,126.51,126.47,39.93412458]
[1742552939353,24.8746843,126.51,126.47,7.907]
[1742552939680,23.23715231,126.5,126.47,7.907]
[1742552941176,23.30015231,126.51,126.47,31.14415231]
[1742552941471,0.063,126.51,126.47,31.14415231]
[1742552941970,0.063,126.51,126.47,50.91165231]
[1742552942369,23.30015231,126.51,126.47,50.91165231]
[1742552943175,14.97457681,126.51,126.47,27.6745]
[1742552943559,14.91157681,126.49,126.47,7.907]
[1742552943876,14.91157681,126.5,126.47,7.907]
[1742552944472,14.97457681,126.51,126.47,27.6745]
[1742552944949,0.063,126.51,126.47,27.6745]
[1742552945155,0.063,126.51,126.48,6.1996]
[1742552945464,0.063,126.51,126.49,7.9057]
[1742552947373,0.063,126.51,126.49,22.81727681]
[1742552947575,0.063,126.51,126.5,14.91157681]
[1742552947769,0.0001,126.51,126.5,96.11157681]
[1742552947982,0.0001,126.51,126.5,97.73567681]
[1742552948495,0.0001,126.51,126.5,82.8241]
[1742552949491,0.0001,126.51,126.5,90.7292]
[1742552950383,0.0001,126.51,126.5,1.6241]
[1742552950763,0.0001,126.51,126.5,9.5292]
[1742552951455,0.0001,126.51,126.5,1.6241]
[1742552951655,0.0001,126.51,126.5,9.5292]
[1742552952677,0.0001,126.51,126.49,7.9056]
[1742552953878,0.0001,126.51,126.48,102.3657]
[1742552954078,0.0001,126.51,126.48,21.1657]
[1742552954883,0.0001,126.51,126.48,14.1057]
[1742552955963,0.0001,126.51,126.48,29.01727681]
[1742552956482,0.0001,126.51,126.48,48.78317681]
[1742552956864,0.0001,126.51,126.48,33.8716]
[1742552958088,0.0001,126.51,126.48,48.78317681]
[1742552959184,0.0001,126.51,126.49,14.91157681]
[1742552959385,0.0001,126.51,126.49,21.95157681]
[1742552960284,0.0001,126.51,126.5,7.9051]
[1742552961873,0.0001,126.51,126.5,22.81667681]
[1742552962073,0.0001,126.51,126.5,7.9051]
[1742552968802,0.0001,126.51,126.49,7.9057]
[1742552971979,0.0001,126.51,126.49,22.81727681]
[1742552973200,0.0001,126.51,126.5,14.91157681]
[1742552973497,0.0001,126.51,126.49,22.81727681]
[1742552973881,0.0001,126.51,126.5,14.91157681]
[1742552975519,0.0001,126.51,126.5,21.25757681]
[1742552976003,0.0001,126.51,126.5,29.16267681]
[1742552976882,0.0001,126.51,126.5,110.36267681]
[1742552977199,0.0001,126.51,126.5,111.86677681]
[1742552981109,0.063,126.56,126.5,171.43949995]
[1742552981309,0.063,126.56,126.54,14.91157681]
[1742552981607,0.063,126.56,126.55,7.02]
[1742552981996,0.063,126.56,126.55,103.13157681]
[1742552982410,0.063,126.56,126.55,111.03357681]
[1742552985181,0.063,126.56,126.55,112.56827681]
[1742552985610,0.0001,126.56,126.55,118.90977681]
[1742552986721,1.5253,126.54,126.5,6.22689323]
[1742552986889,20.56864628,126.48,126.46,97.87472367]
[1742552987087,30.53857681,126.47,126.46,96.3124212]
[1742552987302,23.0482291,126.48,126.46,96.3124212]
[1742552987505,14.91157681,126.47,126.46,96.3124212]
[1742552987804,20.66641757,126.47,126.4,0.03]
[1742552988006,14.91157681,126.46,126.4,0.03]
[1742552988703,9.29453199,126.45,126.4,0.03]
[1742552988887,14.91157681,126.44,126.4,0.03]
[1742552989090,23.32675561,126.44,126.4,0.03]
[1742552990302,5.75484076,126.43,126.4,0.03]
[1742552990812,5.75484076,126.43,126.4,23.35675561]
[1742552991025,5.75484076,126.43,126.41,23.32675561]
[1742552991505,23.32675561,126.47,126.41,23.32675561]
[1742552991805,9.58348767,126.51,126.42,23.32675561]
[1742552992107,9.58348767,126.51,126.48,23.32675561]
[1742552992286,9.58348767,126.51,126.49,31.04675561]
[1742552992485,9.58348767,126.51,126.49,7.72]
[1742552992903,5.74380359,126.5,126.49,7.72]
[1742552993092,29.0705592,126.5,126.44,31.23555561]
[1742552993297,29.0705592,126.5,126.45,23.32675561]
[1742552993692,5.74380359,126.5,126.44,89.1088]
[1742552993905,5.74380359,126.5,126.47,23.32675561]
[1742552994087,23.32675561,126.53,126.48,23.32675561]
[1742552994286,23.32675561,126.53,126.49,7.9057]
[1742552994709,23.32675561,126.54,126.49,7.9057]
[1742552994911,5.74236338,126.52,126.49,7.9057]
[1742552995903,5.74236338,126.51,126.49,7.9057]
[1742552996613,5.74236338,126.51,126.49,31.23245561]
[1742552996799,5.74236338,126.51,126.49,112.43245561]
[1742552997108,52.6844163,126.55,126.49,112.43245561]
[1742552997415,23.32675561,126.54,126.49,112.43245561]
[1742552997603,29.35766069,126.55,126.5,23.32675561]
[1742552997911,23.32675561,126.54,126.5,7.78]
[1742552998410,38.25848568,126.54,126.5,7.78]
[1742552998813,23.32675561,126.53,126.5,7.78]
[1742552999229,38.25848568,126.54,126.5,7.78]
[1742553000000,5.7429731,126.53,126.5,15.6848]
[1742553000615,29.06972871,126.53,126.5,15.6848]
[1742553001096,23.32675561,126.53,126.5,15.6848]
[1742553002002,29.35766069,126.55,126.5,15.6848]
[1742553002003,23.32675561,126.52,126.5,7.9048]
[1742553002202,23.32675561,126.52,126.49,89.1054]
[1742553002597,30.93219268,126.55,126.49,89.1054]
[1742553002894,52.6844163,126.55,126.5,23.32675561]
[1742553003105,23.32685561,126.56,126.5,23.32675561]
[1742553003294,23.32685561,126.56,126.51,31.06675561]
[1742553003494,0.0001,126.56,126.52,23.32675561]
[1742553003700,23.32685561,126.56,126.52,23.32675561]
[1742553004193,23.32685561,126.56,126.52,104.52675561]
[1742553004194,0.0001,126.56,126.52,104.52675561]
[1742553004408,0.0001,126.56,126.53,27.6613]
[1742553004598,0.0001,126.56,126.53,108.8613]
[1742553004599,5.74215632,126.55,126.53,108.8613]
[1742553005910,5.74215632,126.55,126.53,7.9032]
[1742553006122,29.06891193,126.55,126.53,7.9032]
[1742553006418,23.32675561,126.54,126.52,89.1035]
[1742553009101,23.32675561,126.54,126.52,7.9035]
[1742553010427,23.32675561,126.54,126.5,27.6667]
[1742553010603,23.32675561,126.54,126.5,108.8667]
[1742553011803,23.32675561,126.53,126.5,27.6667]
[1742553011999,0.063,126.55,126.5,7.9051]
[1742553012000,23.32675561,126.51,126.5,7.9051]
[1742553012527,23.32675561,126.51,126.49,7.9057]
[1742553012820,1.57453199,126.54,126.49,7.9057]
[1742553012821,23.32675561,126.5,126.49,7.9057]
[1742553014920,23.32675561,126.5,126.47,7.907]
[1742553015121,23.32675561,126.51,126.47,27.6745]
[1742553015319,23.32675561,126.52,126.47,51.00125561]
[1742553015818,5.731238,126.51,126.47,51.00125561]
[1742553016019,5.731238,126.51,126.48,23.32675561]
[1742553016202,5.731238,126.51,126.47,67.2095]
[1742553016203,5.731238,126.51,126.47,90.53625561]
[1742553016624,23.32675561,126.52,126.47,90.53625561]
[1742553018424,0.063,126.55,126.49,23.32675561]
[1742553018631,23.38975561,126.55,126.5,7.64]
[1742553019005,23.38975561,126.55,126.5,30.96675561]
[1742553019406,5.73292441,126.54,126.5,30.96675561]
[1742553020428,23.38975561,126.55,126.51,27.6657]
[1742553020624,23.32675561,126.53,126.51,27.6657]
[1742553021208,23.32675561,126.54,126.51,27.6657]
[1742553023124,5.73522617,126.53,126.51,27.6657]
[1742553024539,0.063,126.54,126.53,7.9032]
[1742553025248,0.0001,126.54,126.53,114.19444886]
[1742553025428,0.063,126.55,126.53,114.19444886]
[1742553025429,0.0001,126.55,126.53,137.52120447]
[1742553025634,0.0001,126.55,126.54,30.92675561]
[1742553026649,0.0001,126.55,126.54,38.82935561]
[1742553029629,0.0001,126.55,126.54,120.02935561]
[1742553030557,23.32685561,126.55,126.52,7.9035]
[1742553030724,0.0001,126.55,126.52,7.9035]
[1742553030918,0.0001,126.55,126.52,31.23025561]
[1742553031125,0.0001,126.55,126.52,50.98995561]
[1742553032143,0.0001,126.55,126.53,23.32675561]
[1742553032324,0.0001,126.55,126.53,30.88675561]
[1742553033354,0.0001,126.55,126.54,7.9026]
[1742553034355,0.0001,126.55,126.53,7.9032]
[1742553034654,5.74678335,126.55,126.53,7.9032]
[1742553034854,29.07353896,126.55,126.52,7.9038]
[1742553036055,0.0001,126.55,126.54,23.32675561]
[1742553036494,23.61117875,126.55,126.5,89.105]
[1742553036666,23.32675561,126.52,126.5,7.905]
[1742553036974,0.0001,126.55,126.5,7.905]
[1742553036975,0.0001,126.55,126.5,50.99455561]
[1742553037184,0.0001,126.55,126.54,23.32675561]
[1742553037472,0.0001,126.55,126.54,112.42935561]
[1742553038245,0.0001,126.55,126.54,89.1026]
[1742553041871,23.32685561,126.55,126.51,7.9045]
[1742553042071,23.32675561,126.53,126.5,89.105]
[1742553043673,23.32675561,126.51,126.5,81.2]
[1742553043873,23.32675561,126.51,126.49,7.9053]
[1742553044590,23.32675561,126.5,126.46,95.3969]
[1742553044761,23.32675561,126.5,126.47,7.907]
[1742553045170,23.32675561,126.49,126.46,89.1373]
[1742553045372,23.32675561,126.48,126.46,0.03]
[1742553046582,23.32675561,126.47,126.46,0.03]
[1742553046791,23.32675561,126.48,126.46,0.03]
[1742553046955,23.32675561,126.5,126.46,0.03]
[1742553047262,23.32675561,126.52,126.47,23.32675561]
[1742553047467,23.32675561,126.53,126.48,23.32675561]
[1742553047665,23.32675561,126.52,126.48,104.52675561]
[1742553047879,23.32675561,126.52,126.49,7.9057]
[1742553048284,0.28442314,126.55,126.49,27.6701]
[1742553048463,23.32675561,126.53,126.49,27.6701]
[1742553049387,23.32675561,126.53,126.49,27.7001]
[1742553049866,23.32675561,126.5,126.49,7.9357]
[1742553050062,23.32675561,126.5,126.49,0.03]
[1742553050963,23.32675561,126.51,126.49,0.03]
[1742553051280,37.27897568,126.52,126.49,0.03]
[1742553051596,37.27897568,126.53,126.49,0.03]
[1742553052086,37.27897568,126.54,126.49,0.03]
[1742553052462,37.27897568,126.54,126.49,37.30897568]
[1742553053071,5.74866846,126.53,126.49,37.30897568]
[1742553053263,5.74866846,126.53,126.49,43.81117568]
[1742553053571,5.74866846,126.53,126.5,7.56]
[1742553054185,37.27897568,126.54,126.51,7.9045]
[1742553054582,37.27897568,126.53,126.51,7.9045]
[1742553054772,37.27897568,126.53,126.5,7.56]
[1742553054773,37.27897568,126.52,126.5,15.4648]
[1742553055464,37.27897568,126.53,126.5,15.4648]
[1742553056085,37.27897568,126.52,126.5,15.4648]
[1742553056287,37.27897568,126.52,126.5,7.9048]
[1742553056783,37.27897568,126.52,126.49,7.9356]
[1742553057288,37.27897568,126.51,126.49,7.9356]
[1742553057699,37.27897568,126.53,126.49,7.9356]
[1742553058380,37.27897568,126.52,126.49,7.9356]
[1742553058785,43.03037232,126.52,126.49,7.9356]
[1742553059782,37.27897568,126.52,126.49,7.9356]
[1742553060892,37.27897568,126.52,126.49,27.7]
[1742553061271,37.27897568,126.52,126.49,7.9356]
[1742553061472,37.27897568,126.51,126.49,7.9356]
[1742553061977,37.27897568,126.5,126.49,0.03]
[1742553062164,37.56329882,126.5,126.49,0.03]
[1742553062375,45.46839882,126.5,126.49,0.03]
[1742553062787,51.21779267,126.5,126.49,0.03]
[1742553063375,58.73779267,126.5,126.49,0.03]
[1742553064206,20.0,126.47,126.46,0.03]
[1742553064502,65.47029882,126.47,126.46,0.03]
[1742553064905,71.21969267,126.47,126.46,0.03]
[1742553065573,72.76309267,126.47,126.46,0.03]
[1742553065769,73.04741581,126.47,126.46,0.03]
[1742553066002,0.56864628,126.46,126.4,0.03]
[1742553066178,37.27897568,126.41,126.4,0.03]
[1742553067183,37.27897568,126.42,126.4,0.03]
[1742553067782,37.27897568,126.43,126.4,0.03]
[1742553068294,37.27897568,126.41,126.4,0.03]
[1742553068692,37.27897568,126.42,126.4,0.03]
[1742553069380,37.27897568,126.41,126.4,0.03]
[1742553069581,37.27897568,126.42,126.4,0.03]
[1742553070391,37.27897568,126.41,126.4,0.03]
[1742553070794,1.85885513,126.44,126.4,0.03]
[1742553071095,37.27897568,126.43,126.4,0.03]
[1742553071399,37.27897568,126.44,126.4,0.03]
[1742553071981,37.27897568,126.45,126.4,37.30897568]
[1742553072192,37.27897568,126.44,126.4,0.03]
[1742553072587,37.27897568,126.43,126.4,0.03]
[1742553072792,37.27897568,126.42,126.4,0.03]
[1742553072998,37.27897568,126.41,126.4,0.03]
[1742553073190,23.33601171,126.41,126.4,0.03]
[1742553074613,23.33601171,126.42,126.4,0.03]
[1742553075406,23.33601171,126.41,126.4,0.03]
[1742553075899,23.33601171,126.42,126.4,0.03]
[1742553076090,23.62033485,126.41,126.4,0.03]
[1742553076493,31.53103485,126.41,126.4,0.03]
[1742553077307,33.36355799,126.41,126.4,0.03]
[1742553077503,25.16853485,126.41,126.4,0.03]
[1742553078204,31.53103485,126.41,126.4,0.03]
[1742553078592,23.33601171,126.41,126.4,0.03]
[1742553079186,23.62033485,126.41,126.4,0.03]
[1742553079394,25.19486684,126.41,126.4,0.03]
[1742553079887,24.9105437,126.41,126.4,0.03]
[1742553080098,15.4097,126.43,126.4,0.03]
[1742553080099,23.33601171,126.42,126.4,0.03]
[1742553080298,45.19486684,126.41,126.4,0.03]
[1742553080487,23.33601171,126.41,126.4,0.03]
[1742553080805,23.33601171,126.42,126.4,0.03]
[1742553082922,23.33601171,126.41,126.4,0.03]
[1742553084129,43.90465799,126.41,126.4,0.03]
[1742553084296,25.26313485,126.41,126.4,0.03]
[1742553084626,25.19486684,126.41,126.4,0.03]
[1742553084789,23.33601171,126.41,126.4,0.03]
[1742553085819,31.24671171,126.41,126.4,0.03]
[1742553086017,23.33601171,126.41,126.4,0.03]
[1742553086720,9.39885513,126.44,126.4,0.03]
[1742553086917,23.33601171,126.43,126.4,0.03]
[1742553087095,23.33601171,126.42,126.4,0.03]
[1742553087917,23.33601171,126.43,126.4,0.03]
[1742553088625,23.33601171,126.41,126.4,0.03]
[1742553089621,23.33601171,126.43,126.4,0.03]
[1742553089823,23.33601171,126.42,126.4,0.03]
[1742553090125,23.33601171,126.41,126.4,0.03]
[1742553090996,23.33601171,126.42,126.4,0.03]
[1742553091197,23.33601171,126.41,126.4,0.03]
[1742553091413,23.33601171,126.42,126.4,0.03]
[1742553091793,23.33601171,126.43,126.4,0.03]
[1742553092115,23.33601171,126.44,126.4,0.03]
[1742553092319,23.33601171,126.43,126.4,0.03]
[1742553096521,22.98541171,126.43,126.4,0.03]
[1742553097305,23.33601171,126.44,126.4,7.51]
[1742553097805,23.33601171,126.43,126.4,7.51]
[1742553099025,23.33601171,126.43,126.41,7.9107]
[1742553100238,22.98711171,126.44,126.41,7.9107]
[1742553100405,23.33601171,126.45,126.41,7.9107]
[1742553100611,23.33601171,126.45,126.41,29.2309]
[1742553100812,23.39901171,126.46,126.42,6.4026]
[1742553101011,23.39901171,126.46,126.43,7.9095]
[1742553101625,23.39901171,126.46,126.43,27.6832]
[1742553103217,23.33601171,126.45,126.43,7.9095]
[1742553105028,23.39901171,126.46,126.43,27.6832]
[1742553105329,23.39901171,126.46,126.43,7.9095]
[1742553105824,23.39901171,126.46,126.42,95.5124]
[1742553106009,23.33601171,126.45,126.42,95.5124]
[1742553106217,23.39901171,126.46,126.42,95.5124]
[1742553106925,23.33601171,126.45,126.42,95.5124]
[1742553107635,23.33601171,126.45,126.42,81.2]
[1742553107840,23.33601171,126.43,126.4,0.03]
[1742553108009,23.33601171,126.41,126.4,0.03]
[1742553109123,23.62033485,126.41,126.4,0.03]
[1742553109307,33.10556684,126.41,126.4,0.03]
[1742553109626,39.14333831,126.41,126.4,0.03]
[1742553109836,38.85901517,126.41,126.4,0.03]
[1742553111211,57.79298717,126.41,126.4,0.03]
[1742553111626,20.28432314,126.38,126.37,0.03]
[1742553111825,45.19486684,126.38,126.37,0.03]
[1742553112218,45.47918998,126.38,126.37,0.03]
[1742553112421,51.23263831,126.38,126.37,0.03]
[1742553113253,50.94831517,126.38,126.37,0.03]
[1742553113413,58.86091517,126.38,126.37,0.03]
[1742553114940,59.14523831,126.38,126.37,0.03]
[1742553115827,50.94831517,126.38,126.37,0.03]
[1742553116027,58.86091517,126.38,126.37,0.03]
[1742553116517,50.94831517,126.38,126.37,0.03]
[1742553117620,58.86091517,126.38,126.37,0.03]
[1742553120144,77.79488717,126.38,126.37,0.03]
[1742553120442,23.33601171,126.33,126.32,2.4730234]
[1742553120747,23.33601171,126.34,126.32,2.4730234]
[1742553120927,23.33601171,126.34,126.32,10.3893234]
[1742553121119,23.33601171,126.34,126.32,2.4730234]
[1742553121532,23.33601171,126.33,126.32,2.4730234]
[1742553121732,23.33601171,126.34,126.32,10.3893234]
[1742553122026,23.33601171,126.35,126.32,10.3893234]
[1742553122231,23.33601171,126.34,126.32,10.3893234]
[1742553122421,23.33601171,126.36,126.32,10.3893234]
[1742553122818,23.33601171,126.37,126.32,33.72533511]
[1742553123059,23.33601171,126.37,126.33,1.6394]
[1742553123642,7.66432314,126.4,126.33,1.6394]
[1742553123643,23.33601171,126.36,126.33,1.6394]
[1742553124026,23.33601171,126.35,126.33,1.6394]
[1742553124225,23.33601171,126.35,126.33,9.5551]
[1742553124432,23.33601171,126.35,126.33,1.6394]
[1742553125731,23.33601171,126.34,126.32,2.4730234]
[1742553126129,23.33601171,126.36,126.32,10.3893234]
[1742553126344,23.33601171,126.37,126.32,122.30533511]
[1742553126940,23.33601171,126.35,126.32,17.7693234]
[1742553127139,23.33601171,126.36,126.32,17.7693234]
[1742553130328,23.33601171,126.34,126.32,2.4730234]
[1742553130934,23.33601171,126.34,126.32,10.3893234]
[1742553131633,23.33601171,126.34,126.32,2.4730234]
[1742553131881,23.33601171,126.33,126.32,2.4730234]
[1742553133228,20.0,126.33,126.32,2.4730234]
[1742553133430,43.33601171,126.33,126.32,2.4730234]
[1742553133627,43.62033485,126.33,126.32,2.4730234]
[1742553134549,70.47000685,126.33,126.32,2.4730234]
[1742553135059,19.21829514,126.32,126.31,0.03]
[1742553135264,51.52883884,126.32,126.31,0.03]
[1742553135628,32.59486684,126.32,126.31,0.03]
[1742553136049,30.73601171,126.32,126.31,0.03]
[1742553136357,36.44297593,126.32,126.31,0.03]
[1742553136951,36.44297593,126.32,126.31,6.0364186]
[1742553136952,46.21823106,126.32,126.31,6.0364186]
[1742553137154,5.70696422,126.32,126.31,117.21893031]
[1742553137653,5.70696422,126.32,126.31,12.6829186]
[1742553138056,5.70696422,126.32,126.31,36.01893031]
[1742553138441,0.063,126.37,126.31,117.21893031]
[1742553138759,0.063,126.37,126.35,31.25051171]
[1742553138948,0.063,126.37,126.35,15.3945]
[1742553141165,0.063,126.37,126.35,40.31601171]
[1742553141649,0.063,126.37,126.36,23.33601171]
[1742553141848,0.063,126.37,126.36,110.87191171]
[1742553142548,0.0001,126.37,126.36,110.87191171]
[1742553142745,23.39901171,126.44,126.37,18.933972]
[1742553142938,0.063,126.44,126.4,23.33601171]
[1742553143142,0.063,126.44,126.41,23.33601171]
[1742553143569,0.063,126.44,126.4,111.99601171]
[1742553144344,0.063,126.44,126.41,1.6086]
[1742553145063,0.063,126.44,126.42,7.9101]
[1742553146547,0.063,126.44,126.42,15.3701]
[1742553147269,0.063,126.44,126.42,7.46]
[1742553147464,23.39901171,126.44,126.42,7.46]
[1742553147665,23.33601171,126.43,126.4,81.2]
[1742553147969,23.33601171,126.42,126.4,81.2]
[1742553148579,23.33601171,126.41,126.4,81.2]
[1742553148751,23.33601171,126.41,126.37,6.3569]
[1742553148951,23.33601171,126.38,126.35,1.5544]
[1742553149376,23.33601171,126.39,126.35,1.5544]
[1742553149752,23.33601171,126.38,126.34,87.4398]
[1742553151055,23.33601171,126.37,126.34,87.4398]
[1742553151260,23.33601171,126.37,126.34,81.2]
[1742553151578,23.33601171,126.37,126.32,106.06671171]
[1742553151771,23.33601171,126.37,126.32,113.98301171]
[1742553152069,23.33601171,126.38,126.32,119.98943031]
[1742553152253,23.33601171,126.38,126.32,112.07313031]
[1742553152455,23.33601171,126.38,126.32,119.98943031]
[1742553153473,31.24871171,126.38,126.32,119.98943031]
[1742553153650,23.33601171,126.37,126.32,119.98943031]
[1742553153854,23.33601171,126.37,126.32,127.40943031]
[1742553154075,23.33601171,126.37,126.32,119.49313031]
[1742553154268,23.33601171,126.35,126.32,88.7371186]
[1742553155164,23.33601171,126.35,126.32,7.5371186]
[1742553155374,23.33601171,126.36,126.32,7.5371186]
[1742553155686,31.25001171,126.36,126.32,7.5371186]
[1742553156183,23.33601171,126.35,126.32,6.0064186]
[1742553156763,23.33601171,126.33,126.32,6.0064186]